[Event "EIWCC 2017"]
[Site "Riga"]
[Date "2017.04.12"]
[Round "2"]
[White "Gara, Anita"]
[Black "Otikova, Elina"]
[Result "1-0"]
[ECO "C77"]
[WhiteElo "2354"]
[BlackElo "2049"]
[Annotator "RC"]
[PlyCount "43"]
[EventDate "2017.??.??"]
[EventType "swiss"]
[EventCountry "LAT"]
[SourceTitle "playchess.com"]
[Source "ChessBase"]
[SourceQuality "1"]
[TimeControl "40/5400+30:1800+30"]

1. e4 {[%emt 0:00:00]} e5 {[%emt 0:00:11]} 2. Nf3 {[%emt 0:00:00]} Nc6 {[%emt 0:00:14]} 3. Bb5 {[%emt 0:00:00]} a6 {[%emt 0:00:21]} 4. Ba4 {[%emt 0:00:00]} Nf6 {[%emt 0:00:14]} 5. Nc3 {[%emt 0:00:14]} b5 {[%emt 0:01:22]} 6. Bb3 {[%emt 0:00:04]} Bc5 {[%emt 0:01:01]} 7. d3 {[%emt 0:00:35]} d6 {[%emt 0:02:51]} 8. Nd5 {[%emt 0:00:21]} h6 {[%emt 0:03:43]} 9. c3 {[%emt 0:00:11]} Bb7 {[%emt 0:05:44]} 10. Nxf6+ {[%emt 0:03:03]} Qxf6 {[%emt 0:00:11]} 11. Bd5 {[%emt 0:00:19]} O-O {[%emt 0:04:29]} 12. g4 {[%emt 0:03:10]} Kh7 {[%emt 0:11:23]} 13. g5 {[%emt 0:14:07]} Qe7 {[%emt 0:03:21]} 14. gxh6 {[%emt 0:01:05]} gxh6 {[%emt 0:00:12]} 15. Ng5+ {[%emt 0:08:17]} Kh8 {[%emt 0:06:57]} 16. Qh5 {[%emt 0:08:23]} Qf6 {[%emt 0:00:28]} 17. Nxf7+ {[%emt 0:02:17]} Rxf7 {[%emt 0:08:48]} 18. Qxf7 {[%emt 0:00:14]} Bxf2+ {[%emt 0:00:38]} 19. Ke2 {[%emt 0:00:50]} Qxf7 {[%emt 0:01:14]} 20. Bxf7 {[%emt 0:06:36]} Kg7 {[%emt 0:01:02]} 21. Bd5 {[%emt 0:02:19]} Bb6 {[%emt 0:04:42]} 22. Be3 {[%emt 0:01:22]} 1-0

[Event "EIWCC 2017"]
[Site "Riga"]
[Date "2017.04.12"]
[Round "2"]
[White "Antova, Gabriela"]
[Black "Kouvatsou, Maria"]
[Result "1-0"]
[ECO "A46"]
[WhiteElo "2335"]
[BlackElo "2016"]
[Annotator "RC"]
[PlyCount "115"]
[EventDate "2017.??.??"]
[EventType "swiss"]
[EventCountry "LAT"]
[SourceTitle "playchess.com"]
[Source "ChessBase"]
[SourceQuality "1"]
[TimeControl "40/5400+30:1800+30"]

1. d4 {[%emt 0:00:00]} Nf6 {[%emt 0:00:14]} 2. Nf3 b5 {[%emt 0:01:19]} 3. e3 {[%emt 0:19:04]} a6 {[%emt 0:00:44]} 4. Bd3 {[%emt 0:00:37]} Bb7 {[%emt 0:03:48]} 5. O-O {[%emt 0:01:35]} e6 {[%emt 0:00:45]} 6. b3 {[%emt 0:06:46]} c5 {[%emt 0:04:04]} 7. c4 {[%emt 0:07:25]} b4 {[%emt 0:05:15]} 8. Bb2 {[%emt 0:02:18]} Be7 {[%emt 0:05:38]} 9. Nbd2 {[%emt 0:01:15]} O-O {[%emt 0:03:31]} 10. e4 {[%emt 0:07:52]} cxd4 {[%emt 0:08:20]} 11. e5 {[%emt 0:02:17]} Ne8 {[%emt 0:06:08]} 12. Nxd4 {[%emt 0:00:22]} Nc6 {[%emt 0:05:52]} 13. N2f3 {[%emt 0:04:59]} Qc7 {[%emt 0:04:42]} 14. Qe2 {[%emt 0:04:41]} f5 {[%emt 0:01:06]} 15. exf6 {[%emt 0:03:47]} Nxf6 {[%emt 0:01:23]} 16. h3 {[%emt 0:01:14]} Qf4 {[%emt 0:09:19]} 17. Qd2 {[%emt 0:07:50]} Qxd2 {[%emt 0:07:53]} 18. Nxd2 {[%emt 0:00:01]} Bc5 {[%emt 0:00:39]} 19. N2f3 {[%emt 0:05:44]} Rac8 {[%emt 0:01:58]} 20. Rfe1 {[%emt 0:06:16]} Nxd4 {[%emt 0:08:48]} 21. Nxd4 {[%emt 0:00:03]} Nh5 {[%emt 0:00:20]} 22. Be4 {[%emt 0:03:18]} Bxe4 {[%emt 0:00:26]} 23. Rxe4 {[%emt 0:00:01]} Nf4 {[%emt 0:00:27]} 24. Rd1 {[%emt 0:00:35]} Rf7 {[%emt 0:08:25]} 25. Rd2 {[%emt 0:02:21]} Rcf8 {[%emt 0:00:18]} 26. Kh2 {[%emt 0:03:29]} d6 {[%emt 0:01:12]} 27. f3 {[%emt 0:03:14]} e5 {[%emt 0:00:25]} 28. Ne2 {[%emt 0:00:15]} a5 {[%emt 0:03:47]} 29. Nxf4 {[%emt 0:01:39]} Rxf4 {[%emt 0:00:11]} 30. Rxf4 {[%emt 0:00:40]} Rxf4 {[%emt 0:00:34]} 31. Rd5 {[%emt 0:00:13]} e4 {[%emt 0:01:38]} 32. Kg3 {[%emt 0:01:50]} Rf7 {[%emt 0:01:18]} 33. fxe4 {[%emt 0:01:13]} a4 {[%emt 0:01:26]} 34. Bd4 {[%emt 0:00:40]} axb3 {[%emt 0:01:47]} 35. axb3 {[%emt 0:00:01]} Rf1 {[%emt 0:00:28]} 36. Bxc5 {[%emt 0:00:41]} dxc5 {[%emt 0:00:06]} 37. Rd3 {[%emt 0:03:25]} Rc1 {[%emt 0:00:22]} 38. Kf4 {[%emt 0:00:18]} Kf7 {[%emt 0:00:22]} 39. Ke5 {[%emt 0:00:29]} Rc3 {[%emt 0:00:26]} 40. Rf3+ {[%emt 0:00:00]} Ke7 {[%emt 0:01:23]} 41. Kd5 {[%emt 0:00:54]} Rc2 {[%emt 0:00:16]} 42. Rg3 {[%emt 0:06:32]} g6 {[%emt 0:08:15]} 43. Kxc5 {[%emt 0:00:43]} Rc3 {[%emt 0:00:12]} 44. Rf3 {[%emt 0:00:11]} Rc2 {[%emt 0:00:10]} 45. Kxb4 {[%emt 0:00:47]} Rxg2 {[%emt 0:00:07]} 46. Kc5 {[%emt 0:02:55]} h5 {[%emt 0:02:28]} 47. b4 {[%emt 0:04:56]} h4 {[%emt 0:02:16]} 48. Rf4 {[%emt 0:04:57]} g5 {[%emt 0:01:10]} 49. Rf5 {[%emt 0:00:05]} Ke6 {[%emt 0:08:52]} 50. b5 {[%emt 0:00:51]} g4 {[%emt 0:00:06]} 51. hxg4 {[%emt 0:00:24]} Rxg4 {[%emt 0:00:06]} 52. Kd4 {[%emt 0:00:27]} h3 {[%emt 0:06:04]} 53. Rh5 {[%emt 0:00:08]} Rg3 {[%emt 0:00:03]} 54. b6 {[%emt 0:01:06]} Kd7 {[%emt 0:03:27]} 55. Rh6 {[%emt 0:01:14]} Kc8 {[%emt 0:00:17]} 56. Rh7 {[%emt 0:01:41]} Kb8 {[%emt 0:02:23]} 57. c5 {[%emt 0:00:10]} Kc8 {[%emt 0:00:17]} 58. c6 {[%emt 0:00:43]} 1-0

[Event "EIWCC 2017"]
[Site "Riga"]
[Date "2017.04.12"]
[Round "2"]
[White "Ambartsumova, Karina"]
[Black "Hoolt, Sarah"]
[Result "0-1"]
[ECO "B32"]
[WhiteElo "2282"]
[BlackElo "2398"]
[Annotator "ChessBase"]
[PlyCount "74"]
[EventDate "2017.??.??"]
[EventType "swiss"]
[EventCountry "LAT"]
[SourceTitle "playchess.com"]
[Source "ChessBase"]
[SourceQuality "1"]
[TimeControl "40/5400+30:1800+30"]

1. e4 {[%emt 0:00:00]} c5 {[%emt 0:00:05]} 2. Nf3 {[%emt 0:00:00]} Nc6 {[%emt 0:00:05]} 3. d4 {[%emt 0:01:10]} cxd4 {[%emt 0:00:06]} 4. Nxd4 {[%emt 0:00:06]} Qb6 {[%emt 0:00:04]} 5. Nb3 {[%emt 0:01:40]} Nf6 {[%emt 0:00:07]} 6. Nc3 {[%emt 0:01:22]} e6 {[%emt 0:00:05]} 7. Be3 {[%emt 0:07:53]} Qc7 {[%emt 0:00:05]} 8. f4 {[%emt 0:02:11]} Bb4 {[%emt 0:03:51]} 9. Qd3 {[%emt 0:11:54]} O-O {[%emt 0:11:33]} 10. Be2 {[%emt 0:07:24]} Bxc3+ {[%emt 0:11:51]} 11. bxc3 {[%emt 0:00:24]} b6 {[%emt 0:04:01]} 12. Nd4 {[%emt 0:30:09]} Nxd4 {[%emt 0:08:17]} 13. Qxd4 {[%emt 0:00:42]} Bb7 {[%emt 0:11:49]} 14. e5 {[%emt 0:02:32]} Ne4 {[%emt 0:03:34]} 15. Bf3 {[%emt 0:04:01]} d5 {[%emt 0:08:13]} 16. exd6 {[%emt 0:04:30]} Nxd6 {[%emt 0:02:08]} 17. Bxb7 {[%emt 0:01:47]} Nxb7 {[%emt 0:02:38]} 18. O-O {[%emt 0:02:44]} Rac8 {[%emt 0:04:20]} 19. Bd2 {[%emt 0:03:36]} Rfd8 {[%emt 0:00:57]} 20. Qe3 {[%emt 0:00:06]} Nd6 {[%emt 0:00:58]} 21. Be1 {[%emt 0:01:06]} Nf5 {[%emt 0:07:45]} 22. Qf2 {[%emt 0:04:23]} Rd5 {[%emt 0:01:54]} 23. Qe2 {[%emt 0:03:55]} h6 {[%emt 0:02:18]} 24. Rf3 {[%emt 0:00:19]} Rcd8 {[%emt 0:02:29]} 25. h3 {[%emt 0:03:44]} Qc5+ {[%emt 0:01:47]} 26. Kh2 {[%emt 0:02:31]} Qd6 {[%emt 0:00:27]} 27. Qe4 {[%emt 0:00:02]} Qd7 {[%emt 0:05:37]} 28. a4 {[%emt 0:01:17]} Nd6 {[%emt 0:00:18]} 29. Qb4 {[%emt 0:00:19]} Qc7 {[%emt 0:00:53]} 30. Rd3 {[%emt 0:02:27]} Nc4 {[%emt 0:00:57]} 31. Rf3 {[%emt 0:00:29]} a5 {[%emt 0:02:26]} 32. Qb3 {[%emt 0:00:15]} Rd1 {[%emt 0:01:06]} 33. Qa2 {[%emt 0:00:27]} Qc6 {[%emt 0:02:15]} 34. Rxd1 {[%emt 0:00:58]} Rxd1 {[%emt 0:00:06]} 35. Bf2 {[%emt 0:00:29]} Nd2 {[%emt 0:00:50]} 36. Rd3 {[%emt 0:00:05]} Nf1+ {[%emt 0:00:10]} 37. Kg1 {[%emt 0:00:07]} Ne3+ {[%emt 0:00:13]} 0-1

[Event "EIWCC 2017"]
[Site "Riga"]
[Date "2017.04.12"]
[Round "2"]
[White "Stetsko, Lanita"]
[Black "Skripchenko, Almira"]
[Result "1/2-1/2"]
[ECO "C41"]
[WhiteElo "2226"]
[BlackElo "2420"]
[Annotator "TA"]
[PlyCount "50"]
[EventDate "2017.??.??"]
[EventType "swiss"]
[EventCountry "LAT"]
[SourceTitle "playchess.com"]
[Source "ChessBase"]
[SourceQuality "1"]
[TimeControl "40/5400+30:1800+30"]

1. e4 {[%emt 0:00:00]} d6 {[%emt 0:00:16]} 2. d4 {[%emt 0:00:00]} Nf6 {[%emt 0:00:06]} 3. Nc3 {[%emt 0:00:01]} e5 {[%emt 0:00:25]} 4. Nf3 {[%emt 0:00:48]} Nbd7 {[%emt 0:00:06]} 5. Bc4 {[%emt 0:00:42]} Be7 {[%emt 0:00:06]} 6. O-O {[%emt 0:00:09]} O-O {[%emt 0:00:04]} 7. Re1 {[%emt 0:00:41]} a6 {[%emt 0:01:33]} 8. a4 {[%emt 0:01:34]} b6 {[%emt 0:00:26]} 9. Qe2 {[%emt 0:12:41]} Bb7 {[%emt 0:01:17]} 10. Ba2 {[%emt 0:07:06]} c6 {[%emt 0:08:48]} 11. dxe5 {[%emt 0:04:14]} dxe5 {[%emt 0:00:17]} 12. Rd1 {[%emt 0:10:00]} Qc7 {[%emt 0:11:45]} 13. Nh4 {[%emt 0:00:31]} Bb4 {[%emt 0:00:17]} 14. Nf5 {[%emt 0:24:16]} Bxc3 {[%emt 0:13:08]} 15. bxc3 {[%emt 0:00:07]} Nc5 {[%emt 0:00:04]} 16. Ba3 {[%emt 0:02:52]} Nfxe4 {[%emt 0:01:10]} 17. Qg4 {[%emt 0:01:31]} g6 {[%emt 0:00:56]} 18. f3 {[%emt 0:00:46]} Nf6 {[%emt 0:14:41]} 19. Qg5 {[%emt 0:02:36]} Nd5 {[%emt 0:05:39]} 20. Bxc5 {[%emt 0:10:51]} bxc5 {[%emt 0:03:34]} 21. Bxd5 {[%emt 0:12:10]} cxd5 {[%emt 0:01:13]} 22. Nh6+ {[%emt 0:00:42]} Kg7 {[%emt 0:00:04]} 23. Nf5+ {[%emt 0:00:57]} Kg8 {[%emt 0:00:06]} 24. Ne7+ {[%emt 0:03:10]} Kg7 {[%emt 0:00:05]} 25. Nf5+ {[%emt 0:02:47]} Kg8 {[%emt 0:00:06]} 1/2-1/2

[Event "EIWCC 2017"]
[Site "Riga"]
[Date "2017.04.12"]
[Round "2"]
[White "Zherebtsova, Alexandra"]
[Black "Ovod, Evgenija"]
[Result "1-0"]
[ECO "A61"]
[WhiteElo "2222"]
[BlackElo "2382"]
[Annotator "ChessBase"]
[PlyCount "158"]
[EventDate "2017.??.??"]
[EventType "swiss"]
[EventCountry "LAT"]
[SourceTitle "playchess.com"]
[Source "ChessBase"]
[SourceQuality "1"]
[TimeControl "40/5400+30:1800+30"]

1. d4 {[%emt 0:00:00]} Nf6 {[%emt 0:00:07]} 2. c4 {[%emt 0:00:00]} c5 {[%emt 0:00:09]} 3. d5 {[%emt 0:00:00]} e6 {[%emt 0:00:06]} 4. Nc3 {[%emt 0:00:40]} exd5 {[%emt 0:00:13]} 5. cxd5 {[%emt 0:00:06]} d6 {[%emt 0:00:05]} 6. Nf3 {[%emt 0:00:55]} g6 {[%emt 0:00:08]} 7. Bf4 {[%emt 0:00:25]} Bg7 {[%emt 0:00:06]} 8. h3 {[%emt 0:01:26]} O-O {[%emt 0:00:17]} 9. e3 {[%emt 0:00:26]} Re8 {[%emt 0:00:55]} 10. Nd2 {[%emt 0:05:07]} Bf8 {[%emt 0:09:36]} 11. Be2 {[%emt 0:08:38]} Na6 {[%emt 0:02:00]} 12. Qb3 {[%emt 0:26:39]} Nc7 {[%emt 0:01:46]} 13. a4 {[%emt 0:01:29]} b6 {[%emt 0:03:35]} 14. O-O {[%emt 0:04:26]} Ba6 {[%emt 0:02:21]} 15. Nb5 {[%emt 0:12:33]} Bb7 {[%emt 0:01:50]} 16. Nxc7 {[%emt 0:02:04]} Qxc7 {[%emt 0:00:06]} 17. Bf3 {[%emt 0:01:36]} Ba6 {[%emt 0:03:04]} 18. Rfd1 {[%emt 0:02:12]} Rab8 {[%emt 0:03:17]} 19. Qc2 {[%emt 0:01:50]} Rb7 {[%emt 0:09:38]} 20. Rab1 {[%emt 0:02:11]} Qb8 {[%emt 0:13:30]} 21. b3 {[%emt 0:06:40]} b5 {[%emt 0:04:03]} 22. axb5 {[%emt 0:01:26]} Bxb5 {[%emt 0:00:15]} 23. b4 {[%emt 0:02:12]} cxb4 {[%emt 0:03:53]} 24. Rxb4 {[%emt 0:00:05]} Rc8 {[%emt 0:01:36]} 25. Qa2 {[%emt 0:02:21]} a6 {[%emt 0:18:21]} 26. Rdb1 {[%emt 0:05:57]} Rcc7 {[%emt 0:01:59]} 27. Qa5 {[%emt 0:01:32]} Qc8 {[%emt 0:02:33]} 28. Nb3 {[%emt 0:01:30]} Bd3 {[%emt 0:03:15]} 29. Rb2 {[%emt 0:01:20]} Nd7 {[%emt 0:08:21]} 30. Nd4 {[%emt 0:01:28]} Rc5 {[%emt 0:02:44]} 31. Qa3 {[%emt 0:00:51]} Rc3 {[%emt 0:01:13]} 32. R4b3 {[%emt 0:02:47]} Rbxb3 {[%emt 0:01:23]} 33. Rxb3 {[%emt 0:00:05]} Rxb3 {[%emt 0:00:16]} 34. Qxb3 {[%emt 0:00:06]} Bc4 {[%emt 0:01:52]} 35. Qc3 {[%emt 0:01:19]} Qc5 {[%emt 0:00:34]} 36. Nc6 {[%emt 0:01:13]} Bg7 {[%emt 0:00:43]} 37. Qa5 {[%emt 0:01:13]} Qxa5 {[%emt 0:01:32]} 38. Nxa5 {[%emt 0:00:05]} Nb6 {[%emt 0:00:07]} 39. Nxc4 {[%emt 0:01:42]} Nxc4 {[%emt 0:00:04]} 40. Be2 {[%emt 0:00:00]} Ne5 {[%emt 0:00:45]} 41. Bxa6 {[%emt 0:00:31]} f5 {[%emt 0:00:49]} 42. f3 {[%emt 0:02:55]} Bf6 {[%emt 0:02:00]} 43. Kf2 {[%emt 0:00:48]} h5 {[%emt 0:00:37]} 44. Ke2 {[%emt 0:03:14]} Kf7 {[%emt 0:00:42]} 45. Bb5 {[%emt 0:01:06]} Ke7 {[%emt 0:00:53]} 46. Bg3 {[%emt 0:00:26]} Nf7 {[%emt 0:01:36]} 47. Be1 {[%emt 0:00:40]} Be5 {[%emt 0:03:49]} 48. Bd2 {[%emt 0:02:13]} Bf6 {[%emt 0:06:02]} 49. Kd3 {[%emt 0:00:55]} Ne5+ {[%emt 0:00:17]} 50. Kc2 {[%emt 0:00:51]} Bh4 {[%emt 0:00:30]} 51. Kd1 {[%emt 0:07:45]} Nf7 {[%emt 0:00:44]} 52. Ke2 {[%emt 0:02:17]} Bf6 {[%emt 0:01:22]} 53. f4 {[%emt 0:02:40]} Nh6 {[%emt 0:00:55]} 54. Bd3 {[%emt 0:00:40]} Bb2 {[%emt 0:04:26]} 55. e4 {[%emt 0:02:30]} fxe4 {[%emt 0:01:34]} 56. Bxe4 {[%emt 0:00:05]} Kf6 {[%emt 0:00:07]} 57. Bb4 {[%emt 0:02:25]} Nf7 {[%emt 0:00:13]} 58. Kf3 {[%emt 0:01:31]} g5 {[%emt 0:00:48]} 59. g3 {[%emt 0:00:15]} h4 {[%emt 0:04:59]} 60. gxh4 {[%emt 0:02:35]} gxf4 {[%emt 0:00:02]} 61. Kxf4 {[%emt 0:01:03]} Be5+ {[%emt 0:00:25]} 62. Kf3 {[%emt 0:00:33]} Kg7 {[%emt 0:01:06]} 63. Bd2 {[%emt 0:03:16]} Nh6 {[%emt 0:03:45]} 64. h5 {[%emt 0:01:34]} Ng8 {[%emt 0:00:23]} 65. Bf5 {[%emt 0:02:04]} Nf6 {[%emt 0:00:43]} 66. h6+ {[%emt 0:00:11]} Kh8 {[%emt 0:00:09]} 67. Be6 {[%emt 0:00:17]} Kh7 {[%emt 0:00:37]} 68. Ke2 {[%emt 0:00:38]} Kg6 {[%emt 0:01:01]} 69. Kd3 {[%emt 0:00:45]} Nh5 {[%emt 0:01:10]} 70. Bg4 {[%emt 0:00:46]} Nf6 {[%emt 0:01:24]} 71. Bf3 {[%emt 0:00:15]} Kh7 {[%emt 0:00:40]} 72. Kc4 {[%emt 0:00:23]} Kg6 {[%emt 0:03:29]} 73. Kb5 {[%emt 0:00:22]} Kf7 {[%emt 0:00:24]} 74. Kc6 {[%emt 0:00:15]} Kf8 {[%emt 0:00:26]} 75. Kc7 {[%emt 0:01:07]} Kf7 {[%emt 0:00:44]} 76. Bg5 {[%emt 0:00:35]} Kf8 {[%emt 0:00:18]} 77. Bxf6 {[%emt 0:00:39]} Bxf6 {[%emt 0:00:03]} 78. Kxd6 {[%emt 0:00:05]} Kg8 {[%emt 0:00:19]} 79. Ke6 {[%emt 0:00:15]} Bg5 {[%emt 0:00:17]} 1-0

[Event "EIWCC 2017"]
[Site "Riga"]
[Date "2017.04.12"]
[Round "2"]
[White "Exler, Veronika"]
[Black "Tsolakidou, Stavroula"]
[Result "0-1"]
[ECO "A07"]
[WhiteElo "2208"]
[BlackElo "2395"]
[Annotator "ChessBase"]
[PlyCount "66"]
[EventDate "2017.??.??"]
[EventType "swiss"]
[EventCountry "LAT"]
[SourceTitle "playchess.com"]
[Source "ChessBase"]
[SourceQuality "1"]
[TimeControl "40/5400+30:1800+30"]

1. Nf3 {[%emt 0:00:00]} Nf6 {[%emt 0:00:06]} 2. g3 {[%emt 0:00:00]} d5 {[%emt 0:00:11]} 3. Bg2 {[%emt 0:00:00]} c6 {[%emt 0:00:07]} 4. O-O {[%emt 0:00:00]} Bg4 {[%emt 0:00:14]} 5. d4 {[%emt 0:00:00]} e6 {[%emt 0:00:30]} 6. Nbd2 {[%emt 0:00:00]} Be7 {[%emt 0:00:22]} 7. Re1 {[%emt 0:00:01]} O-O {[%emt 0:00:14]} 8. e4 {[%emt 0:00:17]} Bh5 {[%emt 0:00:41]} 9. c3 {[%emt 0:00:16]} h6 {[%emt 0:00:50]} 10. e5 {[%emt 0:01:45]} Nh7 {[%emt 0:03:01]} 11. h4 {[%emt 0:21:12]} Nd7 {[%emt 0:10:40]} 12. Nb3 {[%emt 0:00:07]} Rc8 {[%emt 0:07:49]} 13. Be3 {[%emt 0:05:22]} f6 {[%emt 0:20:08]} 14. exf6 {[%emt 0:30:04]} Rxf6 {[%emt 0:00:49]} 15. Bf4 {[%emt 0:02:53]} g5 {[%emt 0:06:06]} 16. hxg5 {[%emt 0:00:15]} hxg5 {[%emt 0:00:54]} 17. Be5 {[%emt 0:00:17]} Nxe5 {[%emt 0:03:21]} 18. Rxe5 {[%emt 0:10:47]} Qf8 {[%emt 0:02:40]} 19. Nbd2 {[%emt 0:04:18]} Bd6 {[%emt 0:01:37]} 20. Re3 {[%emt 0:00:12]} Qf7 {[%emt 0:08:28]} 21. Qe1 {[%emt 0:01:53]} Rf8 {[%emt 0:01:21]} 22. Rd1 {[%emt 0:12:55]} Bg4 {[%emt 0:06:26]} 23. Rc1 {[%emt 0:00:49]} Bh5 {[%emt 0:05:19]} 24. Rd1 {[%emt 0:03:20]} Bg4 {[%emt 0:06:03]} 25. Rc1 {[%emt 0:00:05]} Qh5 {[%emt 0:00:27]} 26. Ne5 {[%emt 0:02:26]} Bxe5 {[%emt 0:01:00]} 27. Rxe5 {[%emt 0:00:01]} Rh6 {[%emt 0:03:42]} 28. f3 {[%emt 0:01:12]} Qh2+ {[%emt 0:01:42]} 29. Kf2 {[%emt 0:00:05]} Bxf3 {[%emt 0:02:52]} 30. Nxf3 {[%emt 0:00:58]} g4 {[%emt 0:00:35]} 31. Re3 {[%emt 0:02:31]} Rxf3+ {[%emt 0:00:21]} 32. Rxf3 {[%emt 0:00:16]} gxf3 {[%emt 0:00:04]} 33. Kxf3 {[%emt 0:00:44]} Rf6+ {[%emt 0:00:13]} 0-1

[Event "EIWCC 2017"]
[Site "Riga"]
[Date "2017.04.12"]
[Round "2"]
[White "Balajayeva, Khanim"]
[Black "Savina, Anastasia"]
[Result "1/2-1/2"]
[ECO "B07"]
[WhiteElo "2196"]
[BlackElo "2378"]
[Annotator "ChessBase"]
[PlyCount "90"]
[EventDate "2017.??.??"]
[EventType "swiss"]
[EventCountry "LAT"]
[SourceTitle "playchess.com"]
[Source "ChessBase"]
[SourceQuality "1"]
[TimeControl "40/5400+30:1800+30"]

1. e4 {[%emt 0:00:00]} d6 {[%emt 0:00:09]} 2. d4 {[%emt 0:00:00]} Nf6 {[%emt 0:00:17]} 3. Nc3 {[%emt 0:01:17]} e5 {[%emt 0:00:06]} 4. dxe5 {[%emt 0:03:24]} dxe5 {[%emt 0:00:05]} 5. Qxd8+ {[%emt 0:00:08]} Kxd8 {[%emt 0:00:04]} 6. Bg5 {[%emt 0:00:36]} Be6 {[%emt 0:01:21]} 7. O-O-O+ {[%emt 0:01:51]} Nbd7 {[%emt 0:00:21]} 8. Nf3 {[%emt 0:00:51]} Kc8 {[%emt 0:00:42]} 9. Bh4 {[%emt 0:04:27]} h6 {[%emt 0:05:25]} 10. Bg3 {[%emt 0:10:14]} Bd6 {[%emt 0:02:28]} 11. Bd3 {[%emt 0:01:22]} a6 {[%emt 0:02:09]} 12. h3 {[%emt 0:00:32]} Nh5 {[%emt 0:16:35]} 13. Bh2 {[%emt 0:00:07]} g5 {[%emt 0:00:20]} 14. g4 {[%emt 0:12:27]} Nf4 {[%emt 0:05:50]} 15. Bxf4 {[%emt 0:02:25]} gxf4 {[%emt 0:00:09]} 16. Nh4 {[%emt 0:04:14]} Bc5 {[%emt 0:09:00]} 17. f3 {[%emt 0:01:39]} b5 {[%emt 0:07:00]} 18. Nf5 {[%emt 0:01:23]} Kb7 {[%emt 0:06:16]} 19. Ng7 {[%emt 0:09:32]} Rh7 {[%emt 0:03:47]} 20. Nxe6 {[%emt 0:01:41]} fxe6 {[%emt 0:00:02]} 21. h4 {[%emt 0:06:37]} h5 {[%emt 0:02:29]} 22. g5 {[%emt 0:11:47]} Nf8 {[%emt 0:00:19]} 23. Rh2 {[%emt 0:00:16]} Ng6 {[%emt 0:01:14]} 24. Bf1 {[%emt 0:03:50]} Bg1 {[%emt 0:03:59]} 25. Rh1 {[%emt 0:00:16]} Bf2 {[%emt 0:00:34]} 26. Bh3 {[%emt 0:02:49]} Re8 {[%emt 0:03:09]} 27. Rdf1 {[%emt 0:00:20]} Bg3 {[%emt 0:12:03]} 28. Ne2 {[%emt 0:01:54]} Bxh4 {[%emt 0:08:51]} 29. Bf5 {[%emt 0:03:00]} exf5 {[%emt 0:00:16]} 30. exf5 {[%emt 0:00:02]} Ne7 {[%emt 0:00:45]} 31. Rxh4 {[%emt 0:00:30]} Nxf5 {[%emt 0:00:06]} 32. Rh3 {[%emt 0:00:03]} h4 {[%emt 0:03:06]} 33. Nc3 {[%emt 0:00:52]} Ng3 {[%emt 0:01:47]} 34. Re1 {[%emt 0:00:09]} Kc6 {[%emt 0:02:46]} 35. Nd1 {[%emt 0:03:32]} Rh5 {[%emt 0:03:33]} 36. Nf2 {[%emt 0:00:27]} Rxg5 {[%emt 0:00:48]} 37. Rxh4 {[%emt 0:00:07]} Rd8 {[%emt 0:00:36]} 38. Nd3 {[%emt 0:00:28]} e4 {[%emt 0:00:28]} 39. fxe4 {[%emt 0:00:33]} f3 {[%emt 0:00:15]} 40. Rh6+ {[%emt 0:00:00]} Rd6 {[%emt 0:00:47]} 41. Rxd6+ {[%emt 0:02:16]} cxd6 {[%emt 0:02:48]} 42. Re3 {[%emt 0:08:22]} Ne2+ {[%emt 0:12:47]} 43. Kd2 {[%emt 0:00:04]} Nd4 {[%emt 0:00:40]} 44. Kc3 {[%emt 0:00:31]} Ne2+ {[%emt 0:00:24]} 45. Kd2 {[%emt 0:00:03]} Nd4 {[%emt 0:03:17]} 1/2-1/2

[Event "EIWCC 2017"]
[Site "Riga"]
[Date "2017.04.12"]
[Round "2"]
[White "Sazonova, Anastasia"]
[Black "Kovanova, Baira"]
[Result "1/2-1/2"]
[ECO "D37"]
[WhiteElo "2143"]
[BlackElo "2376"]
[Annotator "ChessBase"]
[PlyCount "81"]
[EventDate "2017.??.??"]
[EventType "swiss"]
[EventCountry "LAT"]
[SourceTitle "playchess.com"]
[Source "ChessBase"]
[SourceQuality "1"]
[TimeControl "40/5400+30:1800+30"]

1. d4 {[%emt 0:00:00]} Nf6 {[%emt 0:00:04]} 2. c4 {[%emt 0:00:00]} e6 {[%emt 0:00:05]} 3. Nf3 {[%emt 0:00:03]} d5 {[%emt 0:00:16]} 4. Nc3 {[%emt 0:00:49]} Be7 {[%emt 0:00:15]} 5. Bg5 {[%emt 0:00:40]} h6 {[%emt 0:00:11]} 6. Bxf6 {[%emt 0:00:43]} Bxf6 {[%emt 0:00:05]} 7. e3 {[%emt 0:01:03]} O-O {[%emt 0:00:10]} 8. Qc2 {[%emt 0:00:56]} c5 {[%emt 0:00:34]} 9. dxc5 {[%emt 0:03:20]} dxc4 {[%emt 0:00:46]} 10. Bxc4 {[%emt 0:03:51]} Nd7 {[%emt 0:00:12]} 11. c6 {[%emt 0:02:17]} bxc6 {[%emt 0:00:06]} 12. O-O {[%emt 0:02:12]} Bb7 {[%emt 0:00:43]} 13. Rfd1 {[%emt 0:05:17]} Qc7 {[%emt 0:02:35]} 14. Be2 {[%emt 0:04:30]} a6 {[%emt 0:06:30]} 15. Ne4 {[%emt 0:07:46]} Be7 {[%emt 0:00:43]} 16. Rac1 {[%emt 0:01:11]} c5 {[%emt 0:08:35]} 17. b3 {[%emt 0:14:32]} Rac8 {[%emt 0:04:20]} 18. Ned2 {[%emt 0:06:12]} Nf6 {[%emt 0:05:57]} 19. Nc4 {[%emt 0:04:55]} Nd5 {[%emt 0:05:36]} 20. Nfe5 {[%emt 0:06:34]} Bf6 {[%emt 0:09:13]} 21. f4 {[%emt 0:05:13]} Bxe5 {[%emt 0:07:19]} 22. fxe5 {[%emt 0:00:19]} Qe7 {[%emt 0:05:40]} 23. Bf3 {[%emt 0:09:25]} Nb4 {[%emt 0:06:06]} 24. Qe2 {[%emt 0:00:20]} Rcd8 {[%emt 0:02:52]} 25. Bxb7 {[%emt 0:04:12]} Qxb7 {[%emt 0:01:51]} 26. Rd6 {[%emt 0:00:22]} Qe4 {[%emt 0:02:19]} 27. Rcd1 {[%emt 0:02:11]} Rb8 {[%emt 0:03:01]} 28. Rd7 {[%emt 0:05:34]} Nd5 {[%emt 0:03:12]} 29. Rf1 {[%emt 0:01:18]} Qg6 {[%emt 0:09:57]} 30. Rd6 {[%emt 0:02:49]} Nb4 {[%emt 0:05:35]} 31. e4 {[%emt 0:01:10]} Rbc8 {[%emt 0:01:53]} 32. Na5 {[%emt 0:04:51]} c4 {[%emt 0:06:24]} 33. Nxc4 {[%emt 0:00:46]} Qg5 {[%emt 0:00:48]} 34. Rb6 {[%emt 0:00:53]} Nc6 {[%emt 0:00:31]} 35. Rxa6 {[%emt 0:00:33]} Nxe5 {[%emt 0:00:40]} 36. Ra5 {[%emt 0:00:32]} Rxc4 {[%emt 0:00:48]} 37. bxc4 {[%emt 0:00:35]} Nf3+ {[%emt 0:00:05]} 38. Qxf3 {[%emt 0:00:09]} Qxa5 {[%emt 0:00:03]} 39. Qb3 {[%emt 0:00:34]} Qa7+ {[%emt 0:02:22]} 40. Kh1 {[%emt 0:00:00]} Ra8 {[%emt 0:01:24]} 41. Qf3 {[%emt 0:09:53]} 1/2-1/2